[Event "WTCC-50 2018"]
[Site "Radebeul"]
[Date "2018.07.11"]
[Round "5"]
[White "Wallner, Joachim"]
[Black "Jhunjhnuwala, Krishan"]
[Result "1-0"]
[ECO "A01"]
[WhiteElo "2311"]
[BlackElo "2340"]
[Annotator "NA"]
[PlyCount "59"]
[EventDate "2018.07.07"]
[EventType "team-tourn"]
[EventCountry "GER"]
[SourceTitle "playchess.com"]
[Source "ChessBase"]
[SourceQuality "1"]
[TimeControl "40/5400+30:1800+30"]

1. b3 {[%emt 0:00:00]} d5 {[%emt 0:00:00]} 2. Bb2 {[%emt 0:00:00]} c5 {[%emt 0:00:26]} 3. e3 {[%emt 0:00:00]} e6 {[%emt 0:01:00]} 4. Nf3 {[%emt 0:00:20]} Nf6 {[%emt 0:00:38]} 5. Be2 {[%emt 0:04:08]} Be7 {[%emt 0:00:22]} 6. O-O {[%emt 0:00:06]} Nc6 {[%emt 0:00:43]} 7. d4 {[%emt 0:00:29]} cxd4 {[%emt 0:02:39]} 8. exd4 {[%emt 0:02:07]} O-O {[%emt 0:00:39]} 9. Nbd2 {[%emt 0:00:41]} b6 {[%emt 0:05:02]} 10. Re1 {[%emt 0:08:11]} Bb7 {[%emt 0:01:40]} 11. Bf1 {[%emt 0:00:25]} Rc8 {[%emt 0:02:01]} 12. a3 {[%emt 0:03:45]} Qc7 {[%emt 0:03:58]} 13. Bd3 {[%emt 0:02:00]} Rfd8 {[%emt 0:11:02]} 14. Qe2 {[%emt 0:04:38]} Bd6 {[%emt 0:06:45]} 15. Ne5 {[%emt 0:02:33]} Ne7 {[%emt 0:10:40]} 16. Rac1 {[%emt 0:22:39]} Ng6 {[%emt 0:01:46]} 17. g3 {[%emt 0:00:17]} Qe7 {[%emt 0:03:57]} 18. Ra1 {[%emt 0:05:05]} Bb8 {[%emt 0:06:25]} 19. f4 {[%emt 0:05:39]} Ne8 {[%emt 0:06:42]} 20. Ndf3 {[%emt 0:02:29]} Nd6 {[%emt 0:03:53]} 21. Nxg6 {[%emt 0:05:47]} hxg6 {[%emt 0:00:35]} 22. Ng5 {[%emt 0:00:04]} Re8 {[%emt 0:07:44]} 23. Qg4 {[%emt 0:03:32]} f6 {[%emt 0:02:32]} 24. Rxe6 {[%emt 0:03:13]} Qc7 {[%emt 0:06:57]} 25. Bxg6 {[%emt 0:02:12]} fxg5 {[%emt 0:00:45]} 26. fxg5 {[%emt 0:02:05]} Nf7 {[%emt 0:05:20]} 27. Rf1 {[%emt 0:01:08]} Rxe6 {[%emt 0:00:52]} 28. Qxe6 {[%emt 0:02:24]} Rf8 {[%emt 0:00:20]} 29. Bxf7+ {[%emt 0:00:42]} Rxf7 {[%emt 0:00:46]} 30. g6 {[%emt 0:00:05]} 1-0

[Event "WTCC-50 2018"]
[Site "Radebeul"]
[Date "2018.07.11"]
[Round "5"]
[White "Fritsche, Lutz"]
[Black "Welling, Gerard"]
[Result "1-0"]
[ECO "B07"]
[WhiteElo "2303"]
[BlackElo "2317"]
[Annotator "NA"]
[PlyCount "33"]
[EventDate "2018.07.07"]
[EventType "team-tourn"]
[EventCountry "GER"]
[SourceTitle "playchess.com"]
[Source "ChessBase"]
[SourceQuality "1"]
[TimeControl "40/5400+30:1800+30"]

1. e4 {[%emt 0:00:00]} d6 {[%emt 0:00:08]} 2. d4 {[%emt 0:00:00]} Nf6 {[%emt 0:00:04]} 3. Nc3 {[%emt 0:00:48]} e5 {[%emt 0:00:05]} 4. dxe5 {[%emt 0:06:43]} dxe5 {[%emt 0:00:04]} 5. Qxd8+ {[%emt 0:00:17]} Kxd8 {[%emt 0:00:05]} 6. f4 {[%emt 0:00:08]} Bb4 {[%emt 0:01:01]} 7. Bd3 {[%emt 0:00:48]} exf4 {[%emt 0:10:50]} 8. Bxf4 {[%emt 0:01:06]} Be6 {[%emt 0:00:54]} 9. O-O-O {[%emt 0:03:57]} Bxc3 {[%emt 0:08:18]} 10. bxc3 {[%emt 0:00:07]} Nbd7 {[%emt 0:00:04]} 11. Nf3 {[%emt 0:00:15]} Ng4 {[%emt 0:06:15]} 12. Rd2 {[%emt 0:01:01]} h6 {[%emt 0:06:53]} 13. Rhd1 {[%emt 0:12:43]} Kc8 {[%emt 0:02:19]} 14. h3 {[%emt 0:15:47]} g5 {[%emt 0:11:20]} 15. Bg3 {[%emt 0:02:24]} Ne3 {[%emt 0:02:34]} 16. Re1 {[%emt 0:00:15]} Nc4 {[%emt 0:00:06]} 17. Bxc4 {[%emt 0:00:34]} 1-0

[Event "WTCC-50 2018"]
[Site "Radebeul"]
[Date "2018.07.11"]
[Round "5"]
[White "Druckenthaner, Andreas"]
[Black "Jhunjhnuwala, Ramesh"]
[Result "1-0"]
[ECO "B40"]
[WhiteElo "2296"]
[BlackElo "2260"]
[Annotator "NA"]
[PlyCount "101"]
[EventDate "2018.07.07"]
[EventType "team-tourn"]
[EventCountry "GER"]
[SourceTitle "playchess.com"]
[Source "ChessBase"]
[SourceQuality "1"]
[TimeControl "40/5400+30:1800+30"]

1. e4 {[%emt 0:00:00]} c5 {[%emt 0:00:00]} 2. Nf3 {[%emt 0:00:00]} e6 {[%emt 0:00:00]} 3. g3 {[%emt 0:00:00]} d6 {[%emt 0:00:34]} 4. Bg2 {[%emt 0:00:00]} Nf6 {[%emt 0:00:07]} 5. Nc3 {[%emt 0:00:07]} Be7 {[%emt 0:00:17]} 6. O-O {[%emt 0:00:09]} O-O {[%emt 0:00:14]} 7. d3 {[%emt 0:00:10]} Nc6 {[%emt 0:01:01]} 8. h3 {[%emt 0:01:53]} Rb8 {[%emt 0:06:02] B50: Sicilian: 2...d6, Miscellaneous} 9. Bf4 {[%emt 0:15:11]} (9. a4 b6 10. d4 cxd4 11. Nxd4 Nxd4 12. Qxd4 a6 13. Be3 Qc7 14. Qd3 Nd7 15. Rad1 Bb7 16. Bf4 {0-1 (32) Mozharov,M (2508)-Morozevich,A (2739) Moscow 2013}) 9... b5 {[%emt 0:10:59]} 10. e5 {[%emt 0:04:28]} dxe5 {[%emt 0:02:13]} 11. Nxe5 {[%emt 0:03:52]} Nxe5 {[%emt 0:00:11]} 12. Bxe5 {[%emt 0:00:07]} Bd6 {[%emt 0:00:24]} 13. d4 $146 {[%emt 0:11:45]} ({Predecessor:} 13. Bxd6 Qxd6 14. Ne4 Nxe4 15. dxe4 Qe5 16. c3 {½-½ (40) Cao,S (2492)-Chu,W (2243) Ho Chi Minh City 2013}) 13... b4 {[%emt 0:17:55]} 14. Ne2 {[%emt 0:13:46]} Bb7 {[%emt 0:02:33]} 15. Nf4 {[%emt 0:00:51]} Bxg2 {[%emt 0:01:56]} 16. Kxg2 {[%emt 0:01:22]} cxd4 {[%emt 0:07:08]} 17. Qxd4 {[%emt 0:00:34]} Bxe5 {[%emt 0:00:16]} 18. Qxe5 {[%emt 0:00:09]} Qc8 {[%emt 0:01:28]} 19. Qe2 {[%emt 0:11:27]} Qc6+ {[%emt 0:03:10]} 20. Kg1 {[%emt 0:01:15]} Rbc8 {[%emt 0:02:55]} 21. Rfc1 {[%emt 0:02:39]} Rfd8 {[%emt 0:03:56]} 22. c3 {[%emt 0:06:26]} bxc3 {[%emt 0:03:23]} 23. Rxc3 {[%emt 0:00:23]} Qb7 {[%emt 0:00:51]} 24. Rd1 {[%emt 0:02:53]} h6 {[%emt 0:04:33]} 25. Rxc8 {[%emt 0:06:55]} Qxc8 {[%emt 0:03:12]} 26. Rxd8+ {[%emt 0:00:19]} Qxd8 {[%emt 0:00:06]} 27. Qd3 {[%emt 0:03:04]} Qa5 {[%emt 0:01:18]} 28. a3 {[%emt 0:00:50]} Qe1+ {[%emt 0:01:13]} 29. Qf1 {[%emt 0:01:50]} Qd2 {[%emt 0:00:55]} 30. Qe2 {[%emt 0:00:16]} Qc1+ {[%emt 0:00:16]} 31. Kh2 {[%emt 0:01:09]} Qc7 {[%emt 0:04:17]} 32. b4 {[%emt 0:02:49]} e5 {[%emt 0:08:43]} 33. Nd3 {[%emt 0:02:13]} e4 {[%emt 0:00:19]} 34. Nc5 {[%emt 0:00:42]} Qe5 {[%emt 0:00:49]} 35. Qe3 {[%emt 0:00:41]} h5 {[%emt 0:00:57]} 36. a4 {[%emt 0:02:33]} h4 {[%emt 0:02:14]} 37. Kg2 {[%emt 0:02:20]} hxg3 {[%emt 0:01:23]} 38. Qxg3 {[%emt 0:00:06]} Qb2 {[%emt 0:00:57]} 39. Qb8+ {[%emt 0:02:12]} Kh7 {[%emt 0:00:04]} 40. Qxa7 {[%emt 0:01:39]} Qe2 {[%emt 0:07:55]} 41. Qb8 {[%emt 0:13:44]} Qf3+ {[%emt 0:01:37]} 42. Kg1 {[%emt 0:00:07]} Nh5 {[%emt 0:16:41] [#]} 43. Qe5 $1 {[%emt 0:06:49]} f5 {[%emt 0:03:31]} 44. Ne6 {[%emt 0:00:11]} Kh6 {[%emt 0:02:01]} 45. Nd4 {[%emt 0:01:11]} Qd1+ {[%emt 0:00:50]} 46. Kg2 {[%emt 0:01:14]} g5 {[%emt 0:03:07]} (46... Qxa4 $142 47. b5 Qa7 48. Nxf5+ Kh7) 47. Qe6+ {[%emt 0:03:28]} Kg7 {[%emt 0:01:01]} 48. Nxf5+ {[%emt 0:01:13]} Kh7 {[%emt 0:03:20]} 49. Qh6+ {[%emt 0:00:07]} Kg8 {[%emt 0:00:07]} 50. Qxg5+ {[%emt 0:00:04]} Kh7 {[%emt 0:00:48]} 51. Qg4 {[%emt 0:00:20]} 1-0

[Event "WTCC-50 2018"]
[Site "Radebeul"]
[Date "2018.07.11"]
[Round "5"]
[White "Weitzer, Steffen"]
[Black "Enders, Peter"]
[Result "0-1"]
[ECO "A48"]
[WhiteElo "2288"]
[BlackElo "2445"]
[Annotator "NA"]
[PlyCount "99"]
[EventDate "2018.07.07"]
[EventType "team-tourn"]
[EventCountry "GER"]
[SourceTitle "playchess.com"]
[Source "ChessBase"]
[SourceQuality "1"]
[TimeControl "40/5400+30:1800+30"]

1. d4 {[%emt 0:00:00]} Nf6 {[%emt 0:00:00]} 2. Nf3 {[%emt 0:00:00]} g6 {[%emt 0:00:00]} 3. Bf4 {[%emt 0:00:00]} Bg7 {[%emt 0:00:00]} 4. e3 {[%emt 0:00:09]} d6 {[%emt 0:00:00]} 5. h3 {[%emt 0:00:04]} O-O {[%emt 0:00:09]} 6. c3 $11 {[%emt 0:00:05] LiveBook: 485 Partien} Nbd7 {[%emt 0:00:29]} 7. Bc4 {[%emt 0:00:07]} b6 {[%emt 0:01:00]} 8. a4 {[%emt 0:04:42]} a6 {[%emt 0:00:35]} 9. O-O {[%emt 0:00:08]} Bb7 {[%emt 0:00:08]} 10. Re1 {[%emt 0:00:07]} Qe8 {[%emt 0:05:21]} 11. Na3 {[%emt 0:05:53]} e5 {[%emt 0:00:10]} 12. Bh2 {[%emt 0:00:04]} Kh8 {[%emt 0:01:55]} 13. Bf1 {[%emt 0:02:10]} Qe7 {[%emt 0:07:09]} 14. Nc4 {[%emt 0:00:54]} e4 {[%emt 0:01:54]} 15. Nfd2 {[%emt 0:00:11]} Ne8 {[%emt 0:00:53]} 16. Be2 {[%emt 0:03:12]} f5 {[%emt 0:02:04]} 17. f4 {[%emt 0:09:40]} Nef6 {[%emt 0:00:41]} 18. Kh1 {[%emt 0:01:58]} Nd5 {[%emt 0:02:00]} 19. Bf1 {[%emt 0:04:58]} Rae8 {[%emt 0:03:48]} 20. Qe2 {[%emt 0:01:53]} N7f6 {[%emt 0:01:23]} 21. g3 {[%emt 0:01:20]} Bh6 {[%emt 0:02:50]} 22. Bg2 {[%emt 0:02:19]} g5 {[%emt 0:06:57]} 23. Rg1 {[%emt 0:08:42]} Rg8 {[%emt 0:05:23]} 24. Raf1 {[%emt 0:06:24]} Bc8 {[%emt 0:00:15]} 25. Rf2 {[%emt 0:00:19]} Rg7 {[%emt 0:03:12]} 26. Na3 {[%emt 0:02:59]} gxf4 {[%emt 0:04:27]} 27. gxf4 {[%emt 0:01:09]} Qd7 {[%emt 0:00:20]} 28. a5 {[%emt 0:04:32]} bxa5 {[%emt 0:00:12]} 29. Ndc4 {[%emt 0:01:40]} a4 {[%emt 0:00:58]} 30. Bf1 {[%emt 0:01:21]} Reg8 {[%emt 0:05:03]} 31. Rfg2 {[%emt 0:03:47]} Qe8 {[%emt 0:04:51]} 32. Rxg7 {[%emt 0:02:47]} Rxg7 {[%emt 0:00:08]} 33. Rxg7 {[%emt 0:01:42]} Bxg7 {[%emt 0:00:07]} 34. Qd1 {[%emt 0:09:58]} Ng8 {[%emt 0:02:12]} 35. Bg3 {[%emt 0:04:04]} Bf6 {[%emt 0:00:20]} 36. Be2 {[%emt 0:00:41]} Be6 {[%emt 0:00:50]} 37. Bf2 {[%emt 0:00:46]} Bf7 {[%emt 0:01:49]} 38. Kh2 {[%emt 0:04:10]} Nge7 {[%emt 0:02:16]} 39. Nd2 {[%emt 0:03:57]} Ng6 {[%emt 0:01:49]} 40. Nf1 {[%emt 0:02:48]} Qc6 {[%emt 0:09:07]} 41. Ng3 {[%emt 0:32:40]} Nh4 {[%emt 0:32:30]} 42. Nh5 {[%emt 0:01:46]} Be7 {[%emt 0:00:20]} 43. Qe1 {[%emt 0:01:14]} Nf3+ {[%emt 0:00:30]} 44. Bxf3 {[%emt 0:00:13]} exf3 {[%emt 0:00:08]} 45. Ng3 {[%emt 0:00:53]} Qb7 {[%emt 0:05:44]} 46. e4 {[%emt 0:00:52]} fxe4 {[%emt 0:01:46]} 47. c4 {[%emt 0:00:36]} Nxf4 {[%emt 0:04:02]} 48. Nf5 {[%emt 0:00:37]} Qxb2 {[%emt 0:02:51]} 49. Qg1 {[%emt 0:00:42]} Bf6 {[%emt 0:00:50]} 50. Kh1 {[%emt 0:00:02]} 0-1

[Event "WTCC-50 2018"]
[Site "Radebeul"]
[Date "2018.07.11"]
[Round "5"]
[White "Plotkin, Victor"]
[Black "Schmidt, Reiner"]
[Result "1-0"]
[ECO "C15"]
[WhiteElo "2248"]
[BlackElo "2185"]
[Annotator "NA"]
[PlyCount "80"]
[EventDate "2018.07.07"]
[EventType "team-tourn"]
[EventCountry "GER"]
[SourceTitle "playchess.com"]
[Source "ChessBase"]
[SourceQuality "1"]
[TimeControl "40/5400+30:1800+30"]

1. e4 {[%emt 0:00:00]} e6 {[%emt 0:00:00]} 2. d4 {[%emt 0:00:00]} d5 {[%emt 0:00:00]} 3. Nc3 {[%emt 0:00:14]} Bb4 {[%emt 0:00:26]} 4. exd5 {[%emt 0:02:31]} exd5 {[%emt 0:00:06]} 5. Bd3 {[%emt 0:00:15]} Nc6 {[%emt 0:00:31]} 6. Nge2 {[%emt 0:01:50]} Bg4 {[%emt 0:02:02]} 7. a3 {[%emt 0:03:22]} Ba5 {[%emt 0:02:55]} 8. b4 {[%emt 0:06:33]} Bb6 {[%emt 0:00:06]} 9. Bb5 {[%emt 0:02:05]} Nge7 {[%emt 0:01:20]} 10. Bg5 {[%emt 0:04:49]} f6 {[%emt 0:01:02]} 11. Be3 {[%emt 0:03:19]} O-O {[%emt 0:03:14]} 12. f3 {[%emt 0:03:07]} Bh5 {[%emt 0:03:23]} 13. Bf2 {[%emt 0:09:59]} a5 {[%emt 0:17:38]} 14. Rb1 {[%emt 0:05:45]} axb4 {[%emt 0:01:07]} 15. axb4 {[%emt 0:00:11]} Na7 {[%emt 0:00:40]} 16. Bd3 {[%emt 0:01:19]} Nac8 {[%emt 0:00:26]} 17. O-O {[%emt 0:01:43]} Nd6 {[%emt 0:02:34]} 18. Nf4 {[%emt 0:04:17]} Bf7 {[%emt 0:00:36]} 19. Re1 {[%emt 0:04:25]} Ra3 {[%emt 0:19:59]} 20. Qd2 {[%emt 0:03:35]} Qd7 {[%emt 0:02:18]} 21. Ra1 {[%emt 0:03:53]} Rfa8 {[%emt 0:00:42]} 22. Rxa3 {[%emt 0:00:07]} Rxa3 {[%emt 0:00:04]} 23. Nce2 {[%emt 0:08:27]} g5 {[%emt 0:09:19]} 24. Nh3 {[%emt 0:00:24]} Bg6 {[%emt 0:00:04]} 25. Nc1 {[%emt 0:02:54]} Nc4 {[%emt 0:05:51]} 26. Qe2 {[%emt 0:02:48]} Nc6 {[%emt 0:00:54]} 27. Bxc4 {[%emt 0:07:43]} dxc4 {[%emt 0:00:19]} 28. Qxc4+ {[%emt 0:00:34]} Bf7 {[%emt 0:00:30]} 29. Qb5 {[%emt 0:00:46]} Bxd4 {[%emt 0:02:03]} 30. Rd1 {[%emt 0:02:37]} Bxf2+ {[%emt 0:08:43]} 31. Nxf2 {[%emt 0:00:02]} Qe7 {[%emt 0:00:06]} 32. Ne4 {[%emt 0:06:09]} Kg7 {[%emt 0:02:57]} 33. c3 {[%emt 0:04:41]} Ra1 {[%emt 0:03:51]} 34. Kf2 {[%emt 0:03:19]} Ne5 {[%emt 0:01:11]} 35. Qe2 {[%emt 0:01:12]} Bc4 {[%emt 0:03:35]} 36. Qe3 {[%emt 0:00:05]} f5 {[%emt 0:01:41]} 37. Nxg5 {[%emt 0:02:10]} Nd3+ {[%emt 0:05:19]} 38. Rxd3 {[%emt 0:00:22]} Qxe3+ {[%emt 0:00:08]} 39. Rxe3 {[%emt 0:00:09]} Rxc1 {[%emt 0:00:05]} 40. Re7+ {[%emt 0:01:25]} Kf6 {[%emt 0:00:00]} 1-0

[Event "WTCC-50 2018"]
[Site "Radebeul"]
[Date "2018.07.11"]
[Round "5"]
[White "Wong, Meng Kong"]
[Black "Pruefer, Friedbert"]
[Result "1/2-1/2"]
[ECO "A00"]
[WhiteElo "2248"]
[BlackElo "2172"]
[Annotator "NA"]
[PlyCount "97"]
[EventDate "2018.07.07"]
[EventType "team-tourn"]
[EventCountry "GER"]
[SourceTitle "playchess.com"]
[Source "ChessBase"]
[SourceQuality "1"]
[TimeControl "40/5400+30:1800+30"]

1. g3 {[%emt 0:00:00]} d5 {[%emt 0:00:05]} 2. f4 {[%emt 0:00:32]} Nc6 {[%emt 0:04:53]} 3. Nf3 {[%emt 0:00:07]} Nf6 {[%emt 0:03:36]} 4. c3 {[%emt 0:01:27]} g6 {[%emt 0:01:13]} 5. Bg2 {[%emt 0:01:16]} Bg7 {[%emt 0:00:03]} 6. O-O {[%emt 0:00:59]} O-O {[%emt 0:00:13]} 7. Na3 {[%emt 0:05:32]} Qd6 {[%emt 0:05:54]} 8. d4 {[%emt 0:05:05]} Bf5 {[%emt 0:03:01]} 9. Nc2 {[%emt 0:01:49]} Be4 {[%emt 0:04:00]} 10. Ne3 {[%emt 0:02:30]} e6 {[%emt 0:04:31]} 11. Bh3 {[%emt 0:01:30]} Ne7 {[%emt 0:01:46]} 12. Ng5 {[%emt 0:03:15]} c5 {[%emt 0:02:00]} 13. Nxe4 {[%emt 0:00:13]} Nxe4 {[%emt 0:00:20]} 14. Nc2 {[%emt 0:02:03]} c4 {[%emt 0:06:13]} 15. Bg2 {[%emt 0:01:51]} Qc6 {[%emt 0:07:28]} 16. Ne3 {[%emt 0:02:39]} Rfc8 {[%emt 0:01:17]} 17. Ng4 {[%emt 0:01:20]} b5 {[%emt 0:04:13]} 18. Nf2 {[%emt 0:00:48]} f5 {[%emt 0:01:47]} 19. e3 {[%emt 0:01:08]} a5 {[%emt 0:01:54]} 20. Bd2 {[%emt 0:00:53]} Rcb8 {[%emt 0:01:16]} 21. a3 {[%emt 0:00:19]} Nc8 {[%emt 0:01:44]} 22. Qc2 {[%emt 0:00:40]} Bf8 {[%emt 0:02:12]} 23. Nxe4 {[%emt 0:02:04]} dxe4 {[%emt 0:01:03]} 24. Rfc1 {[%emt 0:00:10]} a4 {[%emt 0:10:01]} 25. g4 {[%emt 0:01:04]} Ne7 {[%emt 0:01:32]} 26. Be1 {[%emt 0:00:44]} Nd5 {[%emt 0:00:18]} 27. Bf2 {[%emt 0:00:49]} Ra7 {[%emt 0:03:06]} 28. Qe2 {[%emt 0:00:25]} Be7 {[%emt 0:01:03]} 29. h3 {[%emt 0:00:51]} Bd8 {[%emt 0:00:43]} 30. Kh1 {[%emt 0:00:46]} Rbb7 {[%emt 0:01:50]} 31. Rc2 {[%emt 0:00:52]} Qe8 {[%emt 0:01:33]} 32. Rg1 {[%emt 0:00:23]} Kf8 {[%emt 0:00:49]} 33. Qe1 {[%emt 0:00:39]} h5 {[%emt 0:02:12]} 34. gxh5 {[%emt 0:01:42]} gxh5 {[%emt 0:01:50]} 35. Re2 {[%emt 0:01:12]} Rg7 {[%emt 0:01:49]} 36. Bf1 {[%emt 0:02:45]} Rxg1+ {[%emt 0:01:56]} 37. Bxg1 {[%emt 0:00:08]} Rg7 {[%emt 0:00:25]} 38. Rg2 {[%emt 0:00:07]} Rxg2 {[%emt 0:00:22]} 39. Bxg2 {[%emt 0:00:06]} Qg6 {[%emt 0:00:45]} 40. Bf2 {[%emt 0:00:55]} h4 {[%emt 0:07:45]} 41. Kg1 {[%emt 0:35:14]} Qh6 {[%emt 0:33:44]} 42. Kf1 {[%emt 0:02:51]} Qh5 {[%emt 0:00:38]} 43. Qe2 {[%emt 0:02:02]} Qxe2+ {[%emt 0:00:43]} 44. Kxe2 {[%emt 0:00:06]} Kg7 {[%emt 0:01:37]} 45. Bf1 {[%emt 0:00:13]} Kg6 {[%emt 0:00:35]} 46. Be1 {[%emt 0:00:35]} Be7 {[%emt 0:01:50]} 47. Bd2 {[%emt 0:00:52]} Nb6 {[%emt 0:00:44]} 48. Kd1 {[%emt 0:00:40]} Kh6 {[%emt 0:01:00]} 49. Ke2 1/2-1/2

[Event "WTCC-50 2018"]
[Site "Radebeul"]
[Date "2018.07.11"]
[Round "5"]
[White "Schunk, Thomas"]
[Black "Leow, Leslie M"]
[Result "0-1"]
[ECO "A88"]
[WhiteElo "2238"]
[BlackElo "2419"]
[Annotator "ChessBase"]
[PlyCount "166"]
[EventDate "2018.07.07"]
[EventType "team-tourn"]
[EventCountry "GER"]
[SourceTitle "playchess.com"]
[Source "ChessBase"]
[SourceQuality "1"]
[TimeControl "40/5400+30:1800+30"]

1. c4 {[%emt 0:00:00]} f5 {[%emt 0:00:00]} 2. g3 {[%emt 0:00:00]} Nf6 {[%emt 0:00:24]} 3. Bg2 {[%emt 0:00:07]} g6 {[%emt 0:00:07]} 4. Nc3 {[%emt 0:00:12]} Bg7 {[%emt 0:00:08]} 5. d4 {[%emt 0:00:11]} O-O {[%emt 0:00:39]} 6. Nf3 {[%emt 0:01:32]} d6 {[%emt 0:00:30]} 7. O-O {[%emt 0:00:20]} c6 {[%emt 0:01:20]} 8. Qc2 {[%emt 0:01:03]} Qc7 {[%emt 0:02:07]} 9. b3 {[%emt 0:05:57]} e5 {[%emt 0:02:15]} 10. dxe5 {[%emt 0:01:22]} dxe5 {[%emt 0:00:19]} 11. Ba3 {[%emt 0:00:28]} Re8 {[%emt 0:05:00]} 12. Rad1 {[%emt 0:00:35]} e4 {[%emt 0:01:37]} 13. Bd6 {[%emt 0:01:07]} Qa5 {[%emt 0:17:22]} 14. b4 {[%emt 0:06:27]} Qa6 {[%emt 0:03:02]} 15. b5 {[%emt 0:00:33]} Qa5 {[%emt 0:01:13]} 16. Nd4 {[%emt 0:00:27]} Bd7 {[%emt 0:08:34]} 17. Nb3 {[%emt 0:03:47]} Qd8 {[%emt 0:00:42]} 18. a4 {[%emt 0:00:27]} Be6 {[%emt 0:08:26]} 19. Nc5 {[%emt 0:07:48]} Qc8 {[%emt 0:02:54]} 20. f3 {[%emt 0:03:04]} exf3 {[%emt 0:04:52]} 21. exf3 {[%emt 0:02:47]} Bxc4 {[%emt 0:01:14]} 22. Rfe1 {[%emt 0:03:08]} Nbd7 {[%emt 0:20:02]} 23. N3e4 {[%emt 0:08:19]} Bd5 {[%emt 0:03:56]} 24. Nc3 {[%emt 0:01:10]} Bf7 {[%emt 0:02:13]} 25. Rxe8+ {[%emt 0:08:34]} Nxe8 {[%emt 0:00:51]} 26. Nxd7 {[%emt 0:00:43]} Qxd7 {[%emt 0:00:04]} 27. Bc5 {[%emt 0:00:14]} Qe6 {[%emt 0:02:29]} 28. Bf2 {[%emt 0:03:48]} Qc4 {[%emt 0:01:22]} 29. Rc1 {[%emt 0:00:35]} cxb5 {[%emt 0:00:29]} 30. Nxb5 {[%emt 0:05:31]} Qxc2 {[%emt 0:03:15]} 31. Rxc2 {[%emt 0:00:05]} Bb3 {[%emt 0:00:38]} 32. Rc1 {[%emt 0:00:54]} a6 {[%emt 0:00:23]} 33. Nd4 {[%emt 0:01:22]} Bxa4 {[%emt 0:00:03]} 34. f4 {[%emt 0:00:06]} Rd8 {[%emt 0:06:24]} 35. Ne6 {[%emt 0:01:01]} Rd7 {[%emt 0:00:08]} 36. Nc5 {[%emt 0:01:28]} Rd1+ {[%emt 0:00:11]} 37. Rxd1 {[%emt 0:00:10]} Bxd1 {[%emt 0:00:03]} 38. Bd5+ {[%emt 0:00:27]} Kh8 {[%emt 0:00:22]} 39. Nxb7 {[%emt 0:00:23]} Bc3 {[%emt 0:02:41]} 40. Bb6 {[%emt 0:02:51]} Be2 {[%emt 0:01:00]} 41. h3 {[%emt 0:32:31]} Nf6 {[%emt 0:02:11]} 42. Bc6 {[%emt 0:00:00]} Ne4 {[%emt 0:01:13]} 43. g4 {[%emt 0:00:00]} Kg7 {[%emt 0:01:25]} 44. gxf5 {[%emt 0:00:00]} gxf5 {[%emt 0:01:01]} 45. Bd7 {[%emt 0:00:00]} Kg6 {[%emt 0:02:16]} 46. Be8+ {[%emt 0:00:00]} Kf6 {[%emt 0:00:18]} 47. Bd7 {[%emt 0:00:00]} Bb5 {[%emt 0:01:56]} 48. Bc8 {[%emt 0:00:00]} Bd2 {[%emt 0:09:14]} 49. Bd8+ {[%emt 0:00:00]} Kg6 {[%emt 0:00:15]} 50. Bc7 {[%emt 0:00:00]} Nc5 {[%emt 0:01:32]} 51. Nd6 {[%emt 0:00:00]} Bd3 {[%emt 0:07:43]} 52. Bb6 {[%emt 0:00:00]} Na4 {[%emt 0:00:23]} 53. Bd4 {[%emt 0:00:00]} Bxf4 {[%emt 0:00:04]} 54. Nxf5 {[%emt 0:01:08]} Bxf5 {[%emt 0:00:27]} 55. Bxa6 {[%emt 0:00:06]} Bd6 {[%emt 0:00:43]} 56. Bb5 {[%emt 0:12:31]} Nc5 {[%emt 0:00:18]} 57. Be8+ {[%emt 0:01:54]} Kg5 {[%emt 0:00:48]} 58. Bc6 {[%emt 0:02:48]} Bxh3 {[%emt 0:01:52]} 59. Be3+ {[%emt 0:01:00]} Kf6 {[%emt 0:00:28]} 60. Bd4+ {[%emt 0:01:01]} Ke6 {[%emt 0:00:20]} 61. Be3 {[%emt 0:04:30]} Bf5 {[%emt 0:00:40]} 62. Bf3 {[%emt 0:00:56]} Kf6 {[%emt 0:00:57]} 63. Bd4+ {[%emt 0:01:27]} Kg6 {[%emt 0:00:11]} 64. Bc6 {[%emt 0:01:12]} h5 {[%emt 0:00:38]} 65. Be3 {[%emt 0:00:53]} h4 {[%emt 0:00:35]} 66. Bf3 {[%emt 0:04:54]} Nd3 {[%emt 0:01:30]} 67. Bc6 {[%emt 0:00:23]} Kf6 {[%emt 0:01:41]} 68. Kh1 {[%emt 0:01:16]} Ke6 {[%emt 0:00:50]} 69. Bb7 {[%emt 0:00:53]} Kf7 {[%emt 0:00:11]} 70. Bd5+ {[%emt 0:00:14]} Kg7 {[%emt 0:00:15]} 71. Bg5 {[%emt 0:00:48]} Bg3 {[%emt 0:00:55]} 72. Be3 {[%emt 0:00:51]} Kf6 {[%emt 0:00:31]} 73. Bd4+ {[%emt 0:00:54]} Kg5 {[%emt 0:00:13]} 74. Be3+ {[%emt 0:01:06]} Kg4 {[%emt 0:00:07]} 75. Kg1 {[%emt 0:02:47]} Bg6 {[%emt 0:00:24]} 76. Kh1 {[%emt 0:00:39]} Nf2+ {[%emt 0:00:19]} 77. Kg1 {[%emt 0:00:18]} Ne4 {[%emt 0:00:14]} 78. Be6+ {[%emt 0:00:50]} Kf3 {[%emt 0:00:13]} 79. Bh6 {[%emt 0:00:59]} Bf4 {[%emt 0:01:01]} 80. Bg7 {[%emt 0:00:19]} Kg3 {[%emt 0:00:29]} 81. Bd4 {[%emt 0:00:42]} Bh5 {[%emt 0:00:32]} 82. Bf5 {[%emt 0:00:49]} Bf3 {[%emt 0:00:26]} 83. Be6 {[%emt 0:01:13]} h3 {[%emt 0:00:40]} 0-1